bitfinex/quotes_BTCUSD_20240811
["timestamp","ask_amount","ask_price","bid_price","bid_amount"]
[1723393660566,0.00580209,60230.0,60229.0,0.53548392]
[1723393660932,0.08764855,60231.0,60230.0,0.581105]
[1723393661132,0.08764855,60231.0,60230.0,0.76791992]
[1723393662628,0.08764855,60231.0,60230.0,0.53547792]
[1723393662844,0.08764855,60231.0,60230.0,0.18681492]
[1723393663055,0.08764855,60231.0,60230.0,0.31703592]
[1723393663293,0.08764855,60231.0,60230.0,0.20081492]
[1723393663521,0.08764855,60231.0,60230.0,0.31703592]
[1723393663737,0.08764855,60231.0,60230.0,0.32003592]
[1723393663950,0.08764855,60231.0,60230.0,0.78491992]
[1723393665876,0.08764855,60231.0,60230.0,0.55247792]
[1723393667012,0.08764855,60231.0,60230.0,0.78491992]
[1723393668126,0.08184646,60231.0,60230.0,0.86101992]
[1723393670790,0.08184646,60231.0,60230.0,0.98487569]
[1723393671208,0.08184646,60231.0,60230.0,0.99587569]
[1723393671425,0.08184646,60231.0,60230.0,1.00287569]
[1723393671865,0.08184646,60231.0,60230.0,0.77043369]
[1723393672353,0.08184646,60231.0,60230.0,1.00287569]
[1723393672555,0.08184646,60231.0,60230.0,0.77043369]
[1723393672766,0.08184646,60231.0,60230.0,1.00287569]
[1723393673197,0.08764855,60231.0,60230.0,0.32267069]
[1723393673426,0.09113687,60231.0,60230.0,0.32267069]
[1723393673855,0.09113687,60231.0,60230.0,0.42489169]
[1723393674066,0.09313687,60231.0,60230.0,0.42489169]
[1723393674279,0.09313687,60231.0,60230.0,0.31567069]
[1723393674493,0.09313687,60231.0,60230.0,0.34667069]
[1723393674748,0.09313687,60231.0,60230.0,0.33267069]
[1723393674979,0.09313687,60231.0,60230.0,0.32467069]
[1723393675421,0.09313687,60231.0,60230.0,0.33167069]
[1723393675655,0.09313687,60231.0,60230.0,0.34567069]
[1723393677388,0.09313687,60231.0,60230.0,0.20781492]
[1723393677618,0.09313687,60231.0,60230.0,0.34567986]
[1723393678108,0.09113687,60231.0,60230.0,0.46190103]
[1723393678343,0.09113687,60231.0,60230.0,0.69434303]
[1723393678608,0.00580209,60236.0,60235.0,0.116211]
[1723393678839,0.00580209,60237.0,60236.0,0.348628]
[1723393679082,0.00580209,60237.0,60236.0,0.90572703]
[1723393679537,0.00580209,60237.0,60236.0,0.67330803]
[1723393680661,0.00580209,60237.0,60236.0,0.68730803]
[1723393680865,0.00580209,60237.0,60236.0,0.68729191]
[1723393681079,0.00928913,60237.0,60236.0,0.68729191]
[1723393681294,0.00928913,60237.0,60236.0,0.91971091]
[1723393681519,0.00928913,60237.0,60236.0,0.92671091]
[1723393681728,0.00580209,60237.0,60236.0,0.92671091]
[1723393683330,0.00580209,60237.0,60236.0,0.69429191]
[1723393683555,0.00580209,60237.0,60236.0,0.34566391]
[1723393683775,0.00928948,60237.0,60236.0,0.69429556]
[1723393684211,0.01128948,60237.0,60236.0,0.69429556]
[1723393686222,0.00928948,60237.0,60236.0,0.69429556]
[1723393687368,0.00928948,60237.0,60236.0,0.32402392]
[1723393687646,0.00928948,60237.0,60236.0,0.69429477]
[1723393688105,0.00928948,60237.0,60236.0,0.92671377]
[1723393688349,0.00928948,60237.0,60236.0,0.69429477]
[1723393688581,0.00580209,60237.0,60236.0,0.69429477]
[1723393688826,0.00929004,60237.0,60236.0,0.69429477]
[1723393689066,0.01129004,60237.0,60236.0,0.69429477]
[1723393690939,0.01129004,60237.0,60236.0,0.55644292]
[1723393691160,0.01129004,60237.0,60236.0,0.69429319]
[1723393691379,0.01129004,60237.0,60236.0,0.46187419]
[1723393691613,0.01129004,60237.0,60236.0,0.6942935]
[1723393692815,0.01129004,60237.0,60236.0,0.021]
[1723393692816,0.35991204,60237.0,60236.0,0.021]
[1723393693048,0.35991204,60237.0,60236.0,0.15884932]
[1723393693936,0.36074204,60237.0,60236.0,0.15884932]
[1723393694160,0.12832704,60237.0,60236.0,0.15884932]
[1723393696000,0.01212004,60237.0,60236.0,0.43887324]
[1723393696235,0.01212004,60237.0,60236.0,0.69429224]
[1723393696696,0.00863209,60237.0,60236.0,0.69429224]
[1723393696882,0.01212435,60237.0,60236.0,0.69429224]
[1723393697140,0.01212435,60237.0,60236.0,0.83489224]
[1723393697710,0.00863209,60237.0,60236.0,0.83489224]
[1723393698174,0.00663209,60237.0,60236.0,1.06731124]
[1723393698393,0.00663209,60237.0,60236.0,1.07710323]
[1723393698604,0.00863209,60237.0,60236.0,1.07710323]
[1723393700319,0.00663209,60237.0,60236.0,1.07710323]
[1723393700508,0.00663209,60237.0,60236.0,1.65073599]
[1723393700509,0.00083,60237.0,60236.0,1.65073599]
[1723393700935,0.00083,60237.0,60236.0,1.82302538]
[1723393701153,0.00083,60237.0,60236.0,1.65073599]
[1723393701637,0.00663209,60237.0,60236.0,1.03925391]
[1723393701852,0.00663209,60237.0,60236.0,1.2460033]
[1723393702066,0.00663209,60237.0,60236.0,1.0054033]
[1723393702282,0.00663209,60237.0,60236.0,0.93648684]
[1723393703642,0.00663209,60237.0,60236.0,0.93649868]
[1723393704049,0.00663209,60237.0,60236.0,1.00542042]
[1723393704267,0.00663209,60237.0,60236.0,1.00542008]
[1723393704480,0.00663209,60237.0,60236.0,0.93649868]
[1723393704705,0.00083,60237.0,60236.0,1.00541899]
[1723393704910,0.00663209,60237.0,60236.0,1.00541899]
[1723393705152,0.00083,60237.0,60236.0,1.10857291]
[1723393705376,0.00083,60237.0,60236.0,1.48761999]
[1723393705603,0.00083,60237.0,60236.0,1.60044199]
[1723393706036,0.00083,60237.0,60236.0,1.77272447]
[1723393706493,0.00083,60237.0,60236.0,1.60044199]
[1723393707771,0.00083,60237.0,60236.0,1.72300247]
[1723393709093,0.00083,60237.0,60236.0,1.60046137]
[1723393709752,0.00083,60237.0,60236.0,1.77274385]
[1723393709962,0.00083,60237.0,60236.0,1.83288037]
[1723393710173,0.00083,60237.0,60236.0,1.89758548]
[1723393710632,0.00083,60237.0,60236.0,2.13000448]
[1723393711320,0.00083,60237.0,60236.0,2.10515239]
[1723393711462,0.00083,60237.0,60236.0,2.05542147]
[1723393711664,0.00083,60237.0,60236.0,2.07961938]
[1723393711922,0.00083,60237.0,60236.0,2.06542147]
[1723393712067,0.00083,60237.0,60236.0,2.14000318]
[1723393712265,0.00083,60237.0,60236.0,1.95368371]
[1723393712468,0.00083,60237.0,60236.0,2.12634292]
[1723393712869,0.00083,60237.0,60236.0,2.11918111]
[1723393713102,0.00083,60237.0,60236.0,2.13318111]
[1723393713736,0.00083,60237.0,60236.0,2.11918111]
[1723393713875,0.00083,60237.0,60236.0,2.0502702]
[1723393714093,0.00083,60237.0,60236.0,2.13318108]
[1723393714550,0.00083,60237.0,60236.0,1.88610193]
[1723393714770,0.00083,60237.0,60236.0,1.89310193]
[1723393714980,0.00083,60237.0,60236.0,2.05559937]
[1723393715196,0.00083,60237.0,60236.0,1.70038549]
[1723393715417,0.00083,60237.0,60236.0,1.64368293]
[1723393715639,0.00083,60237.0,60236.0,1.65768293]
[1723393716068,0.00083,60237.0,60236.0,1.64368293]
[1723393716289,0.00083,60237.0,60236.0,1.87610193]
[1723393716526,0.00083,60237.0,60236.0,1.89010193]
[1723393716771,0.00083,60237.0,60236.0,1.87610193]
[1723393717440,0.00083,60237.0,60236.0,1.89010193]
[1723393717654,0.00083,60237.0,60236.0,1.65768293]
[1723393717870,0.00083,60237.0,60236.0,1.89010193]
[1723393718540,0.00083,60237.0,60236.0,1.65768293]
[1723393719012,0.00083,60237.0,60236.0,1.70738217]
[1723393719236,0.00083,60237.0,60236.0,1.65768293]
[1723393719673,0.00083,60237.0,60236.0,1.6576855]
[1723393721230,0.00083,60237.0,60236.0,1.8901045]
[1723393721448,0.00083,60237.0,60236.0,1.6576855]
[1723393722562,0.00083,60237.0,60236.0,1.70738474]
[1723393722789,0.00083,60237.0,60236.0,1.70737761]
[1723393723022,0.00083,60237.0,60236.0,1.65767943]
[1723393723285,0.00083,60237.0,60236.0,1.65769061]
[1723393723506,0.00083,60237.0,60236.0,1.70738879]
[1723393723761,0.00083,60237.0,60236.0,1.34758522]
[1723393723987,0.00083,60237.0,60236.0,1.70738931]
[1723393724218,0.00083,60237.0,60236.0,1.65769113]
[1723393724466,0.00083,60237.0,60236.0,1.70738931]
[1723393724925,0.00083,60237.0,60236.0,1.82971512]
[1723393725148,0.00083,60237.0,60236.0,1.87942132]
[1723393726255,0.00083,60237.0,60236.0,1.82971512]
[1723393726473,0.00083,60237.0,60236.0,1.87941912]
[1723393726934,0.00083,60237.0,60236.0,1.82974011]
[1723393727340,0.00083,60237.0,60236.0,2.06215911]
[1723393727563,0.00083,60237.0,60236.0,1.82974011]
[1723393728507,0.00083,60237.0,60236.0,2.11186055]
[1723393730010,0.00083,60237.0,60236.0,2.06215911]
[1723393730236,0.00076569,60237.0,60236.0,2.06215911]
[1723393730457,0.08184646,60252.0,60251.0,0.813263]
[1723393730688,0.00580209,60256.0,60255.0,0.348517]
[1723393730906,0.00580209,60256.0,60255.0,1.11484431]
[1723393731144,0.00580209,60256.0,60255.0,1.13784431]
[1723393731367,0.00580209,60256.0,60255.0,1.20674361]
[1723393732467,0.00580209,60256.0,60255.0,1.21574361]
[1723393732682,0.00580209,60256.0,60255.0,1.14684431]
[1723393733137,0.00580209,60256.0,60255.0,1.16084431]
[1723393733601,0.00580209,60256.0,60255.0,1.17073902]
[1723393733814,0.00580209,60256.0,60255.0,1.17071523]
[1723393734043,0.08764855,60259.0,60258.0,0.580835]
[1723393734265,0.08764855,60259.0,60258.0,0.67311452]
[1723393734266,0.08964855,60259.0,60258.0,0.67311452]
[1723393734484,0.08964855,60259.0,60258.0,0.67311619]
[1723393735343,0.08964855,60259.0,60258.0,0.67911619]
[1723393735786,0.08964855,60259.0,60258.0,0.69311619]
[1723393736778,0.16444855,60259.0,60258.0,0.67011619]
[1723393737010,0.16644855,60259.0,60258.0,0.92545167]
[1723393737231,0.16644855,60259.0,60258.0,0.52930275]
[1723393737480,0.16644855,60259.0,60258.0,0.391501]
[1723393737697,0.16644855,60259.0,60258.0,0.29696855]
[1723393737912,0.16644855,60259.0,60258.0,0.29096855]
[1723393738136,0.16644855,60259.0,60258.0,0.29896855]
[1723393738421,0.16644855,60259.0,60258.0,0.28496855]
[1723393738607,0.16644855,60259.0,60258.0,0.27696855]
[1723393738826,0.16644855,60259.0,60258.0,0.153167]
[1723393739042,0.16644855,60259.0,60258.0,0.2769711]
[1723393739264,0.16644855,60259.0,60258.0,0.043]
[1723393739485,0.16644855,60259.0,60258.0,0.391501]
[1723393740166,0.16644855,60259.0,60258.0,0.377501]
[1723393740397,0.16644855,60259.0,60258.0,0.5293055]
[1723393740824,0.16644855,60259.0,60258.0,0.5233055]
[1723393741666,0.16644855,60259.0,60258.0,0.5283055]
[1723393741880,0.16644855,60259.0,60258.0,0.7606395]
[1723393742317,0.000829,60261.0,60258.0,0.7606395]
[1723393742318,0.00663109,60261.0,60260.0,0.580815]
[1723393742543,0.00663109,60261.0,60260.0,0.90543442]
[1723393742746,0.000829,60261.0,60260.0,1.13776042]
[1723393743170,0.000829,60261.0,60260.0,1.21916042]
[1723393743648,0.000829,60261.0,60260.0,1.23316042]
[1723393744079,0.000829,60261.0,60260.0,1.30205411]
[1723393744278,0.000829,60261.0,60260.0,1.30705411]
[1723393744489,0.000829,60261.0,60260.0,1.23816042]
[1723393744704,0.000829,60261.0,60260.0,1.23316042]
[1723393744926,0.000829,60261.0,60260.0,1.37343345]
[1723393745152,0.000829,60261.0,60260.0,1.30954229]
[1723393745390,0.000829,60261.0,60260.0,1.22662784]
[1723393745595,0.000829,60261.0,60260.0,1.37840794]
[1723393745810,0.000829,60261.0,60260.0,1.17173779]
[1723393746044,0.000829,60261.0,60260.0,1.35940792]
[1723393746276,0.000829,60261.0,60260.0,1.30451788]
[1723393746483,0.000829,60261.0,60260.0,1.37340625]
[1723393747340,0.000829,60261.0,60260.0,1.38740625]
[1723393747786,0.000829,60261.0,60260.0,1.37340625]
[1723393748204,0.000829,60261.0,60260.0,1.38740625]
[1723393748436,0.000829,60261.0,60260.0,1.60573225]
[1723393748709,0.000829,60261.0,60260.0,1.71973225]
[1723393748948,0.000829,60261.0,60260.0,1.89194095]
[1723393749389,0.000829,60261.0,60260.0,1.94158678]
[1723393749810,0.000829,60261.0,60260.0,1.89192191]
[1723393750025,0.000829,60261.0,60260.0,1.95241921]
[1723393750243,0.000829,60261.0,60260.0,1.89192191]
[1723393750459,0.000829,60261.0,60260.0,1.87792191]
[1723393750687,0.000829,60261.0,60260.0,1.94152668]
[1723393751099,0.000829,60261.0,60260.0,1.87792191]
[1723393751327,0.000829,60261.0,60260.0,1.92752668]
[1723393751573,0.000829,60261.0,60260.0,1.94152668]
[1723393751798,0.000829,60261.0,60260.0,1.87792191]
[1723393752214,0.000829,60261.0,60260.0,1.89192191]
[1723393752430,0.000829,60261.0,60260.0,1.80901933]
[1723393752891,0.000829,60261.0,60260.0,1.89189834]
[1723393753110,0.000829,60261.0,60260.0,1.87789834]
[1723393753336,0.000829,60261.0,60260.0,1.89189834]
[1723393754223,0.000829,60261.0,60260.0,1.87789834]
[1723393754439,0.0001976,60261.0,60260.0,1.90189834]
[1723393754656,0.0001976,60261.0,60260.0,2.14842225]
[1723393754879,0.0001976,60261.0,60260.0,2.10622434]
[1723393755111,0.0001976,60261.0,60260.0,1.87389834]
[1723393755347,0.0001976,60261.0,60260.0,1.91609625]
[1723393755595,0.0001976,60261.0,60260.0,1.88789834]
[1723393755826,0.0001976,60261.0,60260.0,1.90189834]
[1723393756064,0.0001976,60261.0,60260.0,1.90189039]
[1723393756533,0.0001976,60261.0,60260.0,1.90189124]
[1723393756751,0.0001976,60261.0,60260.0,1.91608915]
[1723393756969,0.0001976,60261.0,60260.0,1.90208716]
[1723393757402,0.0001976,60261.0,60260.0,1.91608716]
[1723393757619,0.0001,60269.0,60263.0,0.01]
[1723393757847,0.0001,60269.0,60268.0,0.57785692]
[1723393758075,0.0001,60269.0,60268.0,1.68296998]
[1723393759528,0.0001,60269.0,60268.0,1.85514486]
[1723393759745,0.0001,60269.0,60268.0,1.86913089]
[1723393759957,0.0001,60269.0,60268.0,1.68295408]
[1723393760172,0.0001,60269.0,60268.0,1.86512881]
[1723393760431,0.0001,60269.0,60268.0,1.85512881]
[1723393760883,0.0001,60269.0,60268.0,1.86536162]
[1723393761339,0.0001,60269.0,60268.0,1.89336162]
[1723393761555,0.0001,60269.0,60268.0,1.88936162]
[1723393761808,0.0001,60269.0,60268.0,1.87536162]
[1723393762036,0.0001,60269.0,60268.0,1.90336162]
[1723393762266,0.0083,60270.0,60269.0,1.045309]
[1723393762492,0.0083,60270.0,60269.0,1.78951081]
[1723393762713,0.0083,60276.0,60275.0,0.812938]
[1723393762954,0.0083,60276.0,60275.0,1.61723308]
[1723393763243,0.0083,60276.0,60275.0,1.68283308]
[1723393763492,0.0083,60276.0,60275.0,1.68282055]
[1723393764568,0.0083,60276.0,60275.0,1.60422055]
[1723393764795,0.0083,60276.0,60275.0,1.53862055]
[1723393765291,0.0083,60276.0,60275.0,1.48375401]
[1723393765540,0.0083,60276.0,60275.0,1.46975401]
[1723393765791,0.0083,60276.0,60275.0,1.49775401]
[1723393766023,0.0083,60276.0,60275.0,1.48375401]
[1723393766444,0.0083,60276.0,60275.0,1.49775401]
[1723393766695,0.0083,60276.0,60275.0,1.26548601]
[1723393766696,0.01410209,60276.0,60275.0,1.26548601]
[1723393766934,0.0083,60276.0,60275.0,1.27568343]
[1723393767394,0.0083,60276.0,60275.0,1.27568543]
[1723393767614,0.0083,60276.0,60275.0,1.26168543]
[1723393767827,0.0083,60276.0,60275.0,1.24768543]
[1723393768065,0.0083,60276.0,60275.0,1.20394084]
[1723393768281,0.0083,60276.0,60275.0,1.32768366]
[1723393768491,0.0083,60276.0,60275.0,1.35568356]
[1723393768961,0.0083,60276.0,60275.0,1.34168356]
[1723393769370,0.0083,60276.0,60275.0,1.35568356]
[1723393769791,0.01410209,60276.0,60275.0,1.35568356]
[1723393770001,0.0083,60276.0,60275.0,1.35568356]
[1723393770945,0.0083,60276.0,60275.0,1.50655141]
[1723393771380,0.0083,60276.0,60275.0,1.49255141]
[1723393771810,0.0083,60276.0,60275.0,1.72481941]
[1723393772053,0.0083,60276.0,60275.0,1.47855141]
[1723393772309,0.0083,60276.0,60275.0,1.49255141]
[1723393772531,0.0083,60276.0,60275.0,1.50655141]
[1723393772749,0.0083,60276.0,60275.0,1.67872104]
[1723393772983,0.0083,60276.0,60275.0,1.42455141]
[1723393773909,0.0083,60276.0,60275.0,1.41055141]
[1723393774133,0.0083,60276.0,60275.0,1.3445559]
[1723393774354,0.0083,60276.0,60275.0,1.4245559]
[1723393774643,0.0083,60276.0,60275.0,1.3445559]
[1723393774866,0.0083,60276.0,60275.0,1.4245559]
[1723393776950,0.01410209,60276.0,60275.0,1.4245559]
[1723393777158,0.0083,60276.0,60275.0,1.4245559]
[1723393777390,0.01410209,60276.0,60275.0,1.4245559]
[1723393777646,0.01410209,60276.0,60275.0,1.21794084]
[1723393777856,0.01410209,60276.0,60275.0,1.42455895]
[1723393778551,0.01410209,60276.0,60275.0,1.59674071]
[1723393779592,0.0083,60276.0,60275.0,1.59674071]
[1723393781379,0.0083,60276.0,60275.0,1.3901226]
[1723393781586,0.0083,60276.0,60275.0,1.59673935]
[1723393782262,0.0083,60276.0,60275.0,1.76945518]
[1723393785372,0.0083,60276.0,60275.0,1.68945518]
[1723393785603,0.0083,60276.0,60275.0,1.76945518]
[1723393788561,0.0083,60276.0,60275.0,1.7690051]
[1723393788969,0.0083,60276.0,60275.0,1.59678397]
[1723393789173,0.0083,60276.0,60275.0,1.76896458]
[1723393790084,0.0083,60276.0,60275.0,1.76896528]
[1723393792209,0.0083,60276.0,60275.0,1.76896917]
[1723393795597,0.01410209,60276.0,60275.0,1.76896917]
[1723393795830,0.0083,60276.0,60275.0,1.76907156]
[1723393796263,0.01410209,60276.0,60275.0,1.76907156]
[1723393796506,0.0083,60276.0,60275.0,1.76907156]
[1723393796968,0.07770209,60276.0,60275.0,1.68907156]
[1723393797194,0.01410209,60276.0,60275.0,1.68907156]
[1723393797422,0.01410209,60276.0,60275.0,1.35680356]
[1723393797737,0.01410209,60276.0,60275.0,1.18462026]
[1723393797953,0.01410209,60276.0,60275.0,1.0122928]
[1723393798165,0.01410209,60276.0,60275.0,1.18462026]
[1723393798382,0.01410209,60276.0,60275.0,1.0122928]
[1723393799044,0.01410209,60276.0,60275.0,1.0922928]
[1723393799262,0.01410209,60276.0,60275.0,0.9545493]
[1723393799481,0.01410209,60276.0,60275.0,1.09230223]
[1723393799621,0.01410209,60276.0,60275.0,1.32457023]
[1723393799851,0.01410209,60276.0,60275.0,1.32456992]
[1723393800497,0.01410209,60276.0,60275.0,1.32456942]
[1723393800716,0.01410209,60276.0,60275.0,0.95454903]
[1723393801103,0.01410209,60276.0,60275.0,1.18681703]
[1723393801323,0.01410209,60276.0,60275.0,1.25569322]
[1723393801523,0.01410209,60276.0,60275.0,1.02342522]
[1723393801736,0.01410209,60276.0,60275.0,1.25569322]
[1723393802705,0.01410209,60276.0,60275.0,1.4968755]
[1723393802917,0.01410209,60276.0,60275.0,1.49698615]
[1723393803141,0.01410209,60276.0,60275.0,1.66917243]
[1723393803580,0.15610209,60276.0,60275.0,0.77623443]
[1723393803884,0.50449809,60276.0,60275.0,0.028]
[1723393804073,0.73676209,60276.0,60275.0,0.16576295]
[1723393804325,1.44620165,60276.0,60275.0,0.028]
[1723393804630,0.97079609,60271.0,60260.0,0.000913]
[1723393804839,1.04264255,60271.0,60260.0,0.000913]
[1723393805060,1.50977303,60271.0,60260.0,0.000913]
[1723393805313,1.58977127,60271.0,60260.0,0.000913]
[1723393805524,1.19693615,60271.0,60260.0,0.000913]
[1723393806165,1.12264255,60271.0,60260.0,0.000913]
[1723393806605,1.17213873,60271.0,60260.0,0.000913]
[1723393806829,0.85985473,60271.0,60260.0,0.000913]
[1723393807057,0.85985473,60271.0,60266.0,0.232303]
[1723393807058,0.22964855,60271.0,60266.0,0.232303]
[1723393807284,0.22964855,60271.0,60270.0,0.002913]
[1723393807500,0.22964855,60271.0,60270.0,0.000913]
[1723393807727,0.23764855,60271.0,60270.0,0.001913]
[1723393807950,0.23764855,60271.0,60270.0,0.003913]
[1723393808630,0.23764855,60271.0,60270.0,0.001913]
[1723393809097,0.23764855,60271.0,60270.0,0.121057]
[1723393809313,0.16604855,60271.0,60270.0,0.120057]
[1723393809527,0.16604855,60271.0,60270.0,0.352345]
[1723393809954,0.16604855,60271.0,60270.0,0.003913]
[1723393810172,0.17404855,60271.0,60270.0,0.120057]
[1723393811151,0.17404855,60271.0,60270.0,0.352345]
[1723393811370,0.17204855,60271.0,60270.0,0.352345]
[1723393811587,0.17404855,60271.0,60270.0,0.352345]
[1723393812157,0.17404855,60271.0,60270.0,0.349345]
[1723393812379,0.16604855,60271.0,60270.0,0.349345]
[1723393812792,0.17304855,60271.0,60270.0,0.350345]
[1723393813001,0.17304855,60271.0,60270.0,0.233288]
[1723393813203,0.16604855,60271.0,60270.0,0.51224692]
[1723393813459,0.16604855,60271.0,60270.0,0.53524692]
[1723393813675,0.16704855,60271.0,60270.0,0.53824692]
[1723393813904,0.16704855,60271.0,60270.0,0.53524692]
[1723393814394,0.16604855,60271.0,60270.0,0.54424692]
[1723393814871,0.16804855,60271.0,60270.0,0.54424692]
[1723393815536,0.16959858,60271.0,60270.0,0.54424692]
[1723393815778,0.16959858,60271.0,60270.0,0.77653492]
[1723393816016,0.09319858,60271.0,60270.0,0.54424692]
[1723393816467,0.09319858,60271.0,60270.0,0.77653492]
[1723393816738,0.09319858,60271.0,60270.0,0.54424692]
[1723393816972,0.08739649,60271.0,60270.0,0.77653492]
[1723393817198,0.08739649,60271.0,60270.0,0.83763492]
[1723393817415,0.08384646,60271.0,60270.0,1.20769956]
[1723393817878,0.08384646,60271.0,60270.0,1.20768042]
[1723393818101,0.08284646,60271.0,60270.0,1.29868042]
[1723393818321,0.08384646,60271.0,60270.0,1.39088042]
[1723393818556,0.002,60271.0,60270.0,1.62408142]
[1723393818777,0.001,60271.0,60270.0,1.67895569]
[1723393818994,0.0053,60276.0,60275.0,0.952238]
[1723393819244,0.0053,60276.0,60275.0,1.37681042]
[1723393820377,0.0053,60276.0,60275.0,1.60907842]
[1723393820678,0.0053,60276.0,60275.0,1.67794688]
[1723393820939,0.0053,60276.0,60275.0,1.70211505]
[1723393821388,0.0053,60276.0,60275.0,1.56435506]
[1723393821610,0.0053,60276.0,60275.0,1.70208666]
[1723393822086,0.0053,60276.0,60275.0,1.7020853]
[1723393822308,0.0063,60276.0,60275.0,1.7160853]
[1723393822966,0.0053,60276.0,60275.0,1.7020853]
[1723393823221,0.0120081,60282.0,60281.0,1.045102]
[1723393823417,0.0120081,60282.0,60281.0,1.87781313]
[1723393824334,0.0120081,60282.0,60281.0,2.13405207]
[1723393824563,0.0001,60289.0,60281.0,2.13405207]
[1723393824564,0.0001,60289.0,60288.0,0.116109]
[1723393824794,0.0001,60289.0,60288.0,0.96213073]
[1723393825031,0.0001,60289.0,60288.0,1.91663058]
[1723393825271,0.0083,60298.0,60296.0,0.812654]
[1723393825492,0.0083,60298.0,60296.0,1.31536478]
[1723393825722,0.01410209,60298.0,60296.0,1.31536478]
[1723393826184,0.0083,60298.0,60296.0,1.31536478]
[1723393826421,0.0083,60298.0,60296.0,1.88168982]
[1723393826643,0.08184646,60313.0,60308.0,0.11607]
[1723393826644,0.00580209,60310.0,60308.0,0.11607]
[1723393826904,0.00590209,60309.0,60308.0,0.67272178]
[1723393827136,0.00590209,60309.0,60300.0,0.348258]
[1723393827137,0.00580209,60301.0,60300.0,0.348258]
[1723393827371,0.00580209,60303.0,60302.0,0.348246]
[1723393827649,0.00580209,60303.0,60302.0,0.76722492]
[1723393827874,0.00780209,60303.0,60302.0,0.86722492]
[1723393828319,0.00580209,60303.0,60302.0,0.86722492]
[1723393828539,0.00580209,60307.0,60306.0,0.116074]
[1723393828770,0.00580209,60307.0,60306.0,0.74418692]
[1723393829007,0.00580209,60307.0,60306.0,0.76718692]
[1723393829234,0.00580209,60307.0,60306.0,0.99933592]
[1723393829703,0.0001,60309.0,60306.0,0.41896392]
[1723393829928,0.00590209,60309.0,60308.0,0.580352]
[1723393830166,0.00590209,60309.0,60308.0,0.97630792]
[1723393830430,0.00590209,60309.0,60308.0,0.99930792]
[1723393830661,0.0001,60309.0,60308.0,0.99930792]
[1723393831156,0.0001,60309.0,60308.0,1.00630792]
[1723393831382,0.00590209,60309.0,60308.0,1.00630792]
[1723393831616,0.00590209,60309.0,60308.0,0.77416692]
[1723393832084,0.0001,60309.0,60308.0,0.77416692]
[1723393832320,0.0021,60309.0,60308.0,0.85306692]
[1723393832563,0.0021,60309.0,60308.0,1.08520792]
[1723393832799,0.0001,60309.0,60308.0,0.77416692]
[1723393833031,0.0001,60309.0,60308.0,0.77016692]
[1723393833249,0.0001,60309.0,60308.0,1.01530792]
[1723393833722,0.0001,60309.0,60308.0,0.78316692]
[1723393834189,0.00590209,60309.0,60308.0,0.78316692]
[1723393834415,0.00590209,60309.0,60308.0,0.55102592]
[1723393834675,0.26927009,60309.0,60308.0,0.016]
[1723393834899,0.50502273,60309.0,60308.0,0.016]
[1723393835119,0.27288573,60309.0,60308.0,0.016]
[1723393835352,0.15681773,60309.0,60308.0,0.016]
[1723393836089,0.27288573,60309.0,60303.0,0.232158]
[1723393836314,0.08964855,60304.0,60303.0,0.51205292]
[1723393836775,0.09326326,60304.0,60303.0,0.74421292]
[1723393837218,0.09326326,60304.0,60303.0,0.76721292]
[1723393837886,0.08964855,60304.0,60303.0,0.99937292]
[1723393838101,0.08964855,60304.0,60303.0,1.01337292]
[1723393839248,0.08964855,60304.0,60303.0,1.00237292]
[1723393839711,0.08964855,60304.0,60303.0,1.01337292]
[1723393839948,0.08964855,60304.0,60303.0,0.99937292]
[1723393840175,0.08964855,60304.0,60303.0,1.00337292]
[1723393840400,0.08964855,60304.0,60303.0,1.08267292]
[1723393840624,0.08964855,60304.0,60303.0,1.06867292]
[1723393840870,0.08964855,60304.0,60303.0,0.77121292]
[1723393841119,0.08964855,60304.0,60303.0,0.77921292]
[1723393841791,0.16874855,60304.0,60303.0,0.19881492]
[1723393842224,0.16874855,60304.0,60303.0,0.19481492]
[1723393842506,0.16874855,60304.0,60299.0,0.232173]
[1723393842507,0.00580209,60300.0,60299.0,0.232173]
[1723393842725,0.00580209,60300.0,60299.0,0.76725192]
[1723393842945,0.01142507,60300.0,60299.0,0.76725192]
[1723393843408,0.01142507,60300.0,60299.0,0.18681492]
[1723393843409,0.07762507,60300.0,60299.0,0.18681492]
[1723393843637,0.07762507,60300.0,60298.0,0.000913]
[1723393843873,0.00580209,60299.0,60298.0,0.117003]
[1723393844093,0.09052501,60299.0,60298.0,0.000913]
[1723393844325,0.20661301,60299.0,60298.0,0.000913]
[1723393844547,0.09052501,60299.0,60298.0,0.000913]
[1723393845222,0.20661301,60299.0,60298.0,0.000913]
[1723393845691,0.09052501,60299.0,60298.0,0.000913]
[1723393845918,0.20661301,60299.0,60298.0,0.001913]
[1723393846148,1.95006501,60299.0,60298.0,0.001913]
[1723393846379,2.24724101,60299.0,60298.0,0.013913]
[1723393846605,2.24724101,60299.0,60298.0,0.001913]
[1723393847069,2.26724101,60299.0,60298.0,0.012913]
[1723393847287,2.26724101,60299.0,60298.0,0.001913]
[1723393847747,2.26724101,60299.0,60298.0,0.000913]
[1723393847977,2.26924101,60299.0,60298.0,0.001913]
[1723393848204,2.50141701,60299.0,60298.0,0.001913]
[1723393848462,2.50141701,60299.0,60271.0,0.232281]
[1723393848463,0.00580209,60271.0,60270.0,0.061413]
[1723393848687,0.08620209,60271.0,60270.0,0.13867989]
[1723393848908,0.00580209,60271.0,60270.0,0.28087192]
[1723393849133,0.00940941,60271.0,60270.0,0.28087192]
[1723393849355,0.00940941,60271.0,60270.0,0.51315992]
[1723393849589,0.00580209,60271.0,60270.0,0.16472792]
[1723393849786,0.00938782,60271.0,60270.0,0.16472792]
[1723393850034,0.00938782,60271.0,60270.0,0.17472792]
[1723393850283,0.00938782,60271.0,60270.0,0.29087192]
[1723393850941,0.00938782,60271.0,60270.0,0.17472792]
[1723393851165,0.00938782,60271.0,60270.0,0.19772792]
[1723393851430,0.01138782,60271.0,60270.0,0.19772792]
[1723393851869,0.01138782,60271.0,60270.0,0.31387192]
[1723393852096,0.00938782,60271.0,60270.0,0.54615992]
[1723393852322,0.00780209,60271.0,60270.0,0.54615992]
[1723393852559,0.00780209,60271.0,60270.0,0.010913]
[1723393852790,0.35622809,60271.0,60270.0,0.010913]
[1723393853018,0.44021408,60271.0,60270.0,0.010913]
[1723393853237,0.09178808,60271.0,60270.0,0.010913]
[1723393853710,0.20793008,60271.0,60270.0,0.010913]
[1723393853938,0.67249808,60271.0,60270.0,0.010913]
[1723393854382,0.20793008,60271.0,60270.0,0.010913]
[1723393855356,0.44021408,60271.0,60270.0,0.010913]
[1723393855828,0.67249808,60271.0,60270.0,0.010913]
[1723393857405,0.20793008,60271.0,60270.0,0.010913]